Cogmind - Beta 10.2 @@@ ROGUE MODE // 2021.10.18 @ 18:10:26 Player: DuckBoy Result: Destroyed by Y-54 Guardian with Gatling Laser Performance ------------- Evolutions (3) 1500 Regions Visited (14) 2800 Robots Destroyed (182) 910 Value Destroyed (5032) 5032 Prototype IDs (23) 460 Alien Tech Used (0) 0 Bonus (1450) 1450 TOTAL SCORE: 12152 Bonus ------- High Alert Combat Kills 188 Follower Combat Kills 502 Entered Garrisons 200 Used RIF Installer 500 Aligned with FarCom 300 Friendly Fire -240 Cogmind --------- Core Integrity 0/700 Matter 300/300 Energy 134/140 System Corruption 15% Temperature Cool (24) Movement Hovering (66) Location -6/Proximity Caves Parts ------- > --- POWER (1) -------- Light Deuterium Engine > --- PROPULSION (2) --- Gravmag System Combat Gravmag System > --- UTILITY (8) ------ Large Storage Unit Advanced Terrain Scanner Hacking Suite Hacking Suite System Shield System Shield Improved System Shield > --- WEAPON (2) ------- Chainsword Chainsword > --- INVENTORY (10) --- Armored Treads System Shield Improved System Shield Improved System Shield Improved System Shield System Backup Module Heavy Particle Cannon Gauss Rifle Assault Cannon Peak State ------------ > --- POWER ------------ Micro Nuclear Core > --- PROPULSION ------- Potential Leg Potential Leg > --- UTILITY ---------- Large Storage Unit Advanced Targeting Computer Improved Light Armor Plating Hacking Suite Hacking Suite Hacking Suite System Shield System Shield > --- WEAPON ----------- Gauss Rifle Chainsword > --- INVENTORY -------- Light Deuterium Engine Improved Light Armor Plating EM Pulse Cannon Plasma Cannon Plasma Cannon High-powered Shotgun High-powered Shotgun Gauss Rifle Assault Cannon Heavy Rocket Launcher [Rating: 57] Favorites ----------- Power Light Nuclear Core Engine Light Deuterium Engine Power Core Light Nuclear Core Propulsion Potential Leg Treads Armored Treads Leg Potential Leg Wheel Wheel Hover Unit Combat Gravmag System Utility Hacking Suite Device System Backup Module Storage Large Storage Unit Processor Advanced Targeting Computer Hackware Hacking Suite Protection Hardened Light Armor Plating Weapon Chainsword Energy Gun EM Pulse Gun Energy Cannon Heavy Particle Cannon Ballistic Gun Gauss Rifle Ballistic Cannon Battle Cannon Launcher Heavy Rocket Launcher Special Weapon Mining Laser Impact Weapon Great Maul Slashing Weapon Chainsword Piercing Weapon Spear Build | -11 -10 -10 -10 -9 -8 -8 -8 -7 -7 -7 -7 -7 -7 -6 ------- Run | Scr Mat Min Exi Min Mat Gar Mat Fac Was Fac Low Low Zio Pro Slots Evolved 6 | . . . . . 4 . . 2 . . . . . . Power . | . . . . . . . . . . . . . . . Propulsion . | . . . . . . . . . . . . . . . Utility 6 | . . . . . 4 . . 2 . . . . . . Weapon . | . . . . . . . . . . . . . . . Parts Attached 139 | 7 7 8 3 2 16 3 7 37 6 31 3 3 1 5 Power 13 | 1 1 1 . . 1 1 1 3 . 3 . . 1 . Engine 7 | 1 . 1 . . . . 1 . . 3 . . 1 . Core 6 | . 1 . . . 1 1 . 3 . . . . . . Reactor . | . . . . . . . . . . . . . . . Propulsion 27 | 2 1 3 2 . . . . 2 3 13 . . . 1 Treads 5 | . . . . . . . . 2 . 3 . . . . Leg 2 | . . . 2 . . . . . . . . . . . Wheel 6 | 2 1 3 . . . . . . . . . . . . Hover 14 | . . . . . . . . . 3 10 . . . 1 Flight . | . . . . . . . . . . . . . . . Utility 42 | 2 1 . 1 . 5 1 2 17 . 8 1 3 . 1 Device 9 | 1 . . . . . . . 2 . 4 1 1 . . Storage 2 | . 1 . 1 . . . . . . . . . . . Processor 3 | 1 . . . . 1 . . 1 . . . . . . Hackware 13 | . . . . . 2 . . 7 . 3 . . . 1 Protection 15 | . . . . . 2 1 2 7 . 1 . 2 . . Artifact . | . . . . . . . . . . . . . . . Weapon 57 | 2 4 4 . 2 10 1 4 15 3 7 2 . . 3 Energy Gun 6 | 1 3 1 . . . . . 1 . . . . . . Energy Cannon 4 | . . . . . . . . . . 1 2 . . 1 Ballistic Gun 15 | 1 1 2 . . 5 . 2 4 . . . . . . Ballistic Cannon 1 | . . . . 1 . . . . . . . . . . Launcher 12 | . . . . 1 2 1 2 4 1 1 . . . . Special Weapon 4 | . . 1 . . 2 . . . . 1 . . . . Impact Weapon 2 | . . . . . 1 . . 1 . . . . . . Slashing Weapon 9 | . . . . . . . . 2 2 4 . . . 1 Piercing Weapon 4 | . . . . . . . . 3 . . . . . 1 Special Melee Weapon . | . . . . . . . . . . . . . . . Unidentified Prototypes . | . . . . . . . . . . . . . . . Parts Lost 41 | . 3 5 . . 4 2 3 9 4 8 . 2 . 1 Power 8 | . 1 . . . 2 . 1 . 1 2 . 1 . . Propulsion 7 | . 1 2 . . . . . 1 . 2 . . . 1 Utility 16 | . . . . . 1 2 1 6 2 3 . 1 . . Weapon 10 | . 1 3 . . 1 . 1 2 1 1 . . . . Highest Loss Streak 4 | . 2 3 . . 2 2 2 2 4 4 . 2 . 1 Average Slot Usage (%) 95 | . 96 95 99 100 87 89 93 98 73 95 94 98 81 86 Engine 4 | . 7 13 14 14 2 . . . . 6 7 6 5 7 Core 3 | . 4 . . . 2 5 6 6 3 . . . . . Leg 7 | . . . 19 28 18 18 18 13 . . . . . . Wheel 2 | . 27 23 8 . . . . . . . . . . . Hover 5 | . . . . . . . . . 3 12 15 15 15 14 Device 3 | . 4 . . . . . . 3 3 5 9 7 7 7 Storage 9 | . 9 14 15 28 18 18 18 9 7 7 7 7 7 7 Processor 5 | . 14 14 12 . 6 9 9 8 3 . . . . . Hackware 28 | . . . . . 10 9 9 28 30 45 38 37 30 32 Protection 5 | . . . . . 12 12 14 9 3 . . 6 . . Ballistic Gun 5 | . 14 21 14 14 10 1 4 6 . . . . . . Launcher 1 | . . . . . . 7 7 . 3 2 . . . . Slashing Weapon 5 | . . . . . . . . 5 6 9 7 7 7 11 Naked Turns . | . . . . . . . . . . . . . . . Heaviest Build 62 | 8 27 27 37 39 62 58 52 58 37 35 36 39 31 31 Greatest Support 60 | 20 20 26 60 60 60 60 60 60 40 40 36 36 36 36 Greatest Overweight (x) 2 | . 1 2 2 . 1 . . 1 . 1 . 1 . 1 Average Overweight (x) . | . . . . . . . . . . . . . . . Largest Inventory Capacity 16 | 4 10 10 16 16 16 16 16 16 10 10 10 10 10 10 Average Capacity 11 | 4 7 10 10 16 16 16 16 11 10 10 10 10 10 10 Most Carried 16 | 3 9 10 11 11 15 16 16 16 10 10 10 10 10 10 Average Carried 10 | . 4 9 10 11 13 15 15 11 9 9 10 10 10 9 Final Capacity 16 | 4 10 10 16 16 16 16 16 10 10 10 10 10 10 10 Final Carried 16 | 2 9 10 11 11 15 16 16 10 10 10 10 10 10 9 Class Distribution -------------------- 46% | Hacker-Mutant 28% | Wizard-Mutant 13% | Mutant 7% | Scavenger-Mutant 3% | Hacker-Assassin Dominant Class ---------------- Mutant | -10/Materials Scavenger-Mutant | -10/Mines Scavenger-Mutant | -10/Exiles Mutant | -9/Mines Mutant | -8/Materials Mutant | -8/Garrison Mutant | -8/Materials Hacker-Mutant | -7/Factory Hacker-Mutant | -7/Waste Wizard-Mutant | -7/Factory Hacker-Mutant | -7/Lower Caves Hacker-Mutant | -7/Lower Caves Hacker-Mutant | -7/Zion Hacker-Mutant | -6/Proximity Caves Resources | -11 -10 -10 -10 -9 -8 -8 -8 -7 -7 -7 -7 -7 -7 -6 ----------- Run | Scr Mat Min Exi Min Mat Gar Mat Fac Was Fac Low Low Zio Pro Matter Collected 3755 | 253 243 199 30 48 492 88 125 915 149 1013 20 87 16 77 Remotely . | . . . . . . . . . . . . . . . Salvage Created 5281 | 11 479 378 . 45 686 255 219 1306 250 1610 . . . 42 Parts 372 | 4 39 29 . 2 44 31 18 95 . 104 . . . 6 Haulers Intercepted 3 | . . . . . 2 . . . . 1 . . . . Recyclers Shooed 5 | . 2 . . . . . 1 . . 2 . . . . Parts Field Recycled . | . . . . . . . . . . . . . . . Retrieved Matter . | . . . . . . . . . . . . . . . Parts Self-Destructed 19 | . . . . . . . . . . . . 13 . 6 Prevented . | . . . . . . . . . . . . . . . Kills | -11 -10 -10 -10 -9 -8 -8 -8 -7 -7 -7 -7 -7 -7 -6 ------- Run | Scr Mat Min Exi Min Mat Gar Mat Fac Was Fac Low Low Zio Pro Combat Hostiles Destroyed 119 | . 14 9 . 1 24 18 7 25 1 19 . . . 1 Melee 32 | . . . . . 2 1 2 10 . 16 . . . 1 Guns 43 | . 14 9 . . 10 . 1 9 . . . . . . Cannons 1 | . . . . 1 . . . . . . . . . . AOE 40 | . . . . . 11 17 3 5 1 3 . . . . Classes Destroyed 15 | 1 5 1 . 1 3 1 . 2 1 . . . . . Worker 15 | . 1 . . . . . . 6 . 8 . . . . Builder 5 | . . . . . 1 . 1 2 . 1 . . . . Tunneler 7 | 1 . 4 . . . . . 2 . . . . . . Hauler 3 | . . . . . 2 . . . . 1 . . . . Recycler 10 | . . 2 . . . . 1 2 . 5 . . . . Operator 14 | . 2 . . . 4 . 2 2 . 4 . . . . Watcher 8 | . 1 . . . 1 . . 2 . 4 . . . . Swarmer 51 | . 6 7 . . 11 11 4 12 . . . . . . Grunt 37 | . 8 2 . . 11 6 2 2 1 5 . . . . Brawler 1 | . . . . . . . . 1 . . . . . . Duelist 3 | . . . . 1 1 . . 1 . . . . . . Sentry 9 | . . . . . 1 . . 4 . 4 . . . . Hunter 3 | . . . . . . 1 1 . . 1 . . . . Programmer 15 | . . . . . . . . 5 . 9 . . . 1 Compactor 1 | . . . . . . . . . 1 . . . . . Best Kill Streak 12 | 1 4 3 . 1 12 10 4 8 1 5 . . . 1 Combat Bots Only 10 | . 4 3 . 1 8 10 3 4 1 3 . . . 1 Max Kills in Single Turn 4 | 1 2 1 . 1 4 4 2 2 1 4 . . . 1 Gunslinging 1 | . 1 . . . . . . . . . . . . . Exploded 4 | . . . . . 4 4 1 2 1 3 . . . . Melee 1 | . . . . . 1 1 1 1 . 1 . . . 1 Uniques/NPCs Destroyed . | . . . . . . . . . . . . . . . Combat | -11 -10 -10 -10 -9 -8 -8 -8 -7 -7 -7 -7 -7 -7 -6 -------- Run | Scr Mat Min Exi Min Mat Gar Mat Fac Was Fac Low Low Zio Pro Damage Taken 6593 | . 402 382 . 34 997 383 516 1730 397 1445 . 146 . 161 Core 1174 | . 75 105 . . 165 78 46 261 24 307 . 51 . 62 Absorbed by Shields . | . . . . . . . . . . . . . . . Core Remaining (%) 58 | 100 . . . 28 . . 47 . . . . . . . Volleys Fired 258 | 1 43 41 . 3 54 18 25 43 23 6 . 1 . . Largest 2 | 2 2 2 . 2 2 1 2 2 1 1 . 1 . . Hottest 105 | 70 73 105 . 59 100 33 50 78 39 63 . 75 . . Shots Fired 388 | 2 86 72 . 6 82 18 30 59 22 10 . 1 . . Gun 296 | 2 86 70 . 3 69 . 20 46 . . . . . . Cannon 6 | . . . . 3 . . . . . 2 . 1 . . Launcher 77 | . . . . . 7 18 10 13 22 7 . . . . Special 9 | . . 2 . . 6 . . . . 1 . . . . Kinetic 230 | 1 43 47 . 6 69 . 20 44 . . . . . . Thermal 46 | 1 13 25 . . 6 . . . . . . 1 . . Explosive 72 | . . . . . 7 18 10 8 22 7 . . . . Electromagnetic 39 | . 30 . . . . . . 7 . 2 . . . . Robot Hit Streak 34 | 1 7 7 . 5 7 5 4 16 31 34 . 3 . . Robot Miss Streak 6 | . 6 4 . 1 5 2 3 2 . 2 . . . . Penetration Max . | . . . . . . . . . . . . . . . Secondary Targets 4 | . 3 1 . . . . . . . . . . . . Max Gunslinging Chain 1 | . 1 1 . . . . . . . . . . . . Shots Hit Robots 411 | 1 56 49 . 5 75 13 20 92 22 75 . 1 . 2 Core Hits 258 | 1 30 22 . 2 52 25 18 57 7 43 . . . 1 Critical Hits 13 | . 1 . . . 3 . . 4 . 5 . . . . Critical Kills 8 | . 1 . . . 1 . . 3 . 3 . . . . Critical Parts Destroyed 5 | . . . . . 2 . . 1 . 2 . . . . Melee Attacks 330 | . . . . . 40 10 14 125 1 121 1 1 13 4 Impact 67 | . . . . . 40 10 14 3 . . . . . . Slashing 250 | . . . . . . . . 109 1 121 1 1 13 4 Piercing 13 | . . . . . . . . 13 . . . . . . Sneak Attacks 41 | . . . . . 4 . 1 10 . 26 . . . . Combat Hostiles 2 | . . . . . . . . . . 2 . . . . Follow-up Attacks 2 | . . . . . . . . . . 2 . . . . Damage Inflicted 18552 | 13 826 571 . 92 2365 1520 864 4391 2365 5450 . 25 . 70 Guns 3491 | 13 820 571 . 25 888 . 211 963 . . . . . . Cannons 92 | . . . . 67 . . . . . . . 25 . . Explosions 6889 | . . . . . 789 1405 450 1062 2365 818 . . . . Melee 8074 | . . . . . 688 115 203 2366 . 4632 . . . 70 Ramming 6 | . 6 . . . . . . . . . . . . . Kinetic 2950 | . 408 412 . 92 888 . 211 939 . . . . . . Thermal 303 | 13 106 159 . . . . . . . . . 25 . . Explosive 6678 | . . . . . 789 1405 450 851 2365 818 . . . . Electromagnetic 541 | . 306 . . . . . . 235 . . . . . . Impact 1006 | . . . . . 688 115 203 . . . . . . . Slashing 6669 | . . . . . . . . 1967 . 4632 . . . 70 Piercing 399 | . . . . . . . . 399 . . . . . . Highest Corruption 30 | . . . . . . . . 6 30 30 16 14 14 15 Average Corruption 12 | . . . . . . . . 4 16 21 15 14 14 14 Corruption Purged 30 | . . . . . . . . 7 . 21 2 . . . Effects 495 | . . . . . . . . 87 23 319 9 25 20 12 Message Errors 87 | . . . . . . . . 22 1 55 1 5 1 2 Matter Fused 71 | . . . . . . . . 9 5 46 1 5 5 . Heat Flow Errors 58 | . . . . . . . . 15 1 37 3 2 . . Energy Discharges 45 | . . . . . . . . 10 1 25 1 3 4 1 Parts Rejected 5 | . . . . . . . . 1 4 . . . . . Data Loss (minor) 50 | . . . . . . . . 13 1 29 2 2 1 2 Data Loss (major) 15 | . . . . . . . . 2 1 8 . 1 2 1 Misfires 11 | . . . . . . . . 6 . 5 . . . . Alerts 10 | . . . . . . . . . . 8 . . 1 1 Misdirections 102 | . . . . . . . . . 5 81 . 6 5 5 Targeting Errors 39 | . . . . . . . . 9 3 24 1 1 1 . Weapon Failures 2 | . . . . . . . . . 1 1 . . . . Overload Shots . | . . . . . . . . . . . . . . . Overflow Damage 1666 | . . . . . 160 95 112 299 8 992 . . . . Projectiles 30 | . . . . . . . 30 . . . . . . . Explosions 196 | . . . . . . 89 . 63 8 36 . . . . Melee 1440 | . . . . . 160 6 82 236 . 956 . . . . Knockbacks 6 | . 1 . . . 2 1 2 . . . . . . . Impact 5 | . 1 . . . 2 1 1 . . . . . . . Kinetic . | . . . . . . . . . . . . . . . Secondary 1 | . . . . . . . 1 . . . . . . . Self-Inflicted Damage 543 | . 3 . . . . . 46 . 316 178 . . . . Shots 14 | . . . . . . . 2 . 8 4 . . . . Rammed 1 | . 1 . . . . . . . . . . . . . Targets Rammed 1 | . 1 . . . . . . . . . . . . . Kicked . | . . . . . . . . . . . . . . . Crushed . | . . . . . . . . . . . . . . . Highest Temperature 392 | 9 100 392 . 32 32 4 38 264 253 278 272 241 . . Average Temperature 83 | 6 43 99 . 16 11 4 20 100 134 92 135 105 . . Received Heat Transfer 1356 | . 174 120 . 18 387 54 108 234 . 225 . 18 . 18 Effects 2 | . . 1 . . . . . 1 . . . . . . Shutdowns 1 | . . 1 . . . . . . . . . . . . Interference 1 | . . . . . . . . 1 . . . . . . Siege Activations . | . . . . . . . . . . . . . . . Robots Corrupted 1 | . . . . . . . . 1 . . . . . . Combat Hostiles 1 | . . . . . . . . 1 . . . . . . Parts Fried 10 | . 1 . . . 6 . 2 1 . . . . . . Impact Corruptions 15 | . . . . . 8 1 6 . . . . . . . Robots Melted . | . . . . . . . . . . . . . . . Combat Hostiles . | . . . . . . . . . . . . . . . Parts Melted 4 | . 1 1 . 1 . . . . . 1 . . . . Heat Transferred 742 | 37 285 383 . . . . . . . . . 37 . . Parts Sabotaged . | . . . . . . . . . . . . . . . Parts Stolen . | . . . . . . . . . . . . . . . Parts Stripped . | . . . . . . . . . . . . . . . Power Chain Reactions . | . . . . . . . . . . . . . . . Missiles Intercepted . | . . . . . . . . . . . . . . . Alert | -11 -10 -10 -10 -9 -8 -8 -8 -7 -7 -7 -7 -7 -7 -6 ------- Run | Scr Mat Min Exi Min Mat Gar Mat Fac Was Fac Low Low Zio Pro Peak Influence 1016 | 5 753 447 . 55 393 710 729 1016 400 357 . . . . Initial 355 | . 3 221 . . 21 131 345 331 355 254 . . . . Average 246 | 1 350 310 . 45 123 563 484 278 370 167 . . . . Maximum Alert Level 3 | . 3 2 . . 1 3 3 3 2 1 . . . . Low Security (%) 52 | 100 41 . . 100 73 15 . 56 . 63 . . . . Level 1 35 | . 13 88 . . 26 9 41 28 99 36 . . . . Level 2 5 | . 31 11 . . . 38 41 5 . . . . . . Level 3 6 | . 13 . . . . 36 16 10 . . . . . . Level 4 . | . . . . . . . . . . . . . . . Level 5 . | . . . . . . . . . . . . . . . High Security . | . . . . . . . . . . . . . . . Max Security . | . . . . . . . . . . . . . . . Squads Dispatched 38 | . 2 . . . 3 . 3 13 . 16 . 1 . . Investigation 5 | . . . . . 1 . . 3 . 1 . . . . Extermination 13 | . . . . . . . . 6 . 7 . . . . Reinforcement 13 | . 2 . . . 2 . 3 2 . 4 . . . . Assault 1 | . . . . . . . . . . . . 1 . . Garrison 6 | . . . . . . . . 2 . 4 . . . . Intercept . | . . . . . . . . . . . . . . . Construction Impeded 1 | . . . . . . . 1 . . . . . . . Haulers Reinforced 1 | . . . . . . . . . . 1 . . . . Stealth | -11 -10 -10 -10 -9 -8 -8 -8 -7 -7 -7 -7 -7 -7 -6 --------- Run | Scr Mat Min Exi Min Mat Gar Mat Fac Was Fac Low Low Zio Pro Distress Signals 10 | . 2 . . . 3 . 2 2 . 1 . . . . Communications Jammed . | . . . . . . . . . . . . . . . Distress Signals . | . . . . . . . . . . . . . . . Times Spotted 211 | . 23 14 . 3 32 18 21 40 7 29 . 11 3 10 Peak Tracking Total 11 | . 6 3 . 3 7 7 6 4 4 3 . 11 3 5 Tactical Retreats 6 | . . 1 . . 1 2 . . 1 . . . . 1 Traps | -11 -10 -10 -10 -9 -8 -8 -8 -7 -7 -7 -7 -7 -7 -6 ------- Run | Scr Mat Min Exi Min Mat Gar Mat Fac Was Fac Low Low Zio Pro Traps Triggered 10 | . . . . . 1 2 . 5 . 2 . . . . Indirectly 2 | . . . . . . . . 2 . . . . . . Trap Hack Attempts . | . . . . . . . . . . . . . . . Triggered . | . . . . . . . . . . . . . . . Disarmed . | . . . . . . . . . . . . . . . Reprogrammed . | . . . . . . . . . . . . . . . Reused . | . . . . . . . . . . . . . . . Traps Extracted . | . . . . . . . . . . . . . . . Installed . | . . . . . . . . . . . . . . . Triggered . | . . . . . . . . . . . . . . . Machines | -11 -10 -10 -10 -9 -8 -8 -8 -7 -7 -7 -7 -7 -7 -6 ---------- Run | Scr Mat Min Exi Min Mat Gar Mat Fac Was Fac Low Low Zio Pro Machines Disabled 34 | . 1 . . . 9 1 2 15 . 5 1 . . . Max in Single Turn 4 | . 1 . . . 2 1 2 4 . 2 1 . . . Garrison Access 4 | . . . . . . . . 4 . . . . . . Machines Sabotaged . | . . . . . . . . . . . . . . . Garrisons Compromised . | . . . . . . . . . . . . . . . Overloaded Fab Kills . | . . . . . . . . . . . . . . . Fab Network Shutdowns . | . . . . . . . . . . . . . . . Hacking | -11 -10 -10 -10 -9 -8 -8 -8 -7 -7 -7 -7 -7 -7 -6 --------- Run | Scr Mat Min Exi Min Mat Gar Mat Fac Was Fac Low Low Zio Pro Machines Accessed 59 | . 4 . 2 . 9 . 2 24 . 17 . . 1 . Terminals 36 | . 4 . . . 8 . 2 13 . 9 . . . . Fabricators 5 | . . . . . . . . 3 . 2 . . . . Repair Stations 1 | . . . . . . . . . . 1 . . . . Recycling Units 3 | . . . . . . . . 3 . . . . . . Scanalyzers 2 | . . . . . . . . 1 . 1 . . . . Garrison Access 9 | . . . . . 1 . . 4 . 4 . . . . Total Hacks 206 | . 7 . 2 . 24 . 4 90 . 77 . . 2 . Successful 126 | . 4 . 2 . 12 . 4 60 . 42 . . 2 . Failed 79 | . 3 . . . 12 . . 29 . 35 . . . . Catastrophic 12 | . . . . . 2 . . 3 . 7 . . . . Database Lockouts 1 | . . . . . . . . 1 . . . . . . Manual 142 | . 7 . 1 . 23 . 3 59 . 49 . . . . Terminals 111 | . 7 . . . 23 . 4 40 . 37 . . . . Fabricators 33 | . . . . . . . . 21 . 12 . . . . Repair Stations 6 | . . . . . . . . . . 6 . . . . Recycling Units 8 | . . . . . . . . 8 . . . . . . Scanalyzers 8 | . . . . . . . . 4 . 4 . . . . Garrison Access 36 | . . . . . 1 . . 17 . 18 . . . . Terminal Hacks 41 | . 1 . 2 . 8 . 1 17 . 10 . . 2 . Record 2 | . . . 1 . . . . 1 . . . . . . Part Schematic 8 | . . . . . 2 . . 4 . . . . 2 . Robot Schematic 8 | . . . . . 2 . . 6 . . . . . . Robot Analysis 1 | . . . . . . . . . . 1 . . . . Terminal Index 5 | . 1 . . . 1 . 1 1 . 1 . . . . Fabricator Index 1 | . . . . . . . . . . 1 . . . . Recycling Unit Index 1 | . . . . . . . . . . 1 . . . . Garrison Index 2 | . . . . . . . . 1 . 1 . . . . Unreport Threat 8 | . . . . . 2 . . 3 . 3 . . . . Locate Traps 1 | . . . . . . . . 1 . . . . . . Recall Investigation 1 | . . . . . . . . . . 1 . . . . Zone Layout 2 | . . . . . 1 . . . . 1 . . . . EX-Prototype ID Bank 1 | . . . 1 . . . . . . . . . . . Fabricator Hacks 22 | . . . . . . . . 13 . 9 . . . . Load Schematic 9 | . . . . . . . . 6 . 3 . . . . Build 13 | . . . . . . . . 7 . 6 . . . . Repair Station Hacks 6 | . . . . . . . . . . 6 . . . . Scan Component 3 | . . . . . . . . . . 3 . . . . Repair 3 | . . . . . . . . . . 3 . . . . Recycling Unit Hacks 1 | . . . . . . . . 1 . . . . . . Retrieve Components 1 | . . . . . . . . 1 . . . . . . Scanalyzer 8 | . . . . . . . . 4 . 4 . . . . Insert Component 4 | . . . . . . . . 2 . 2 . . . . Analyze 4 | . . . . . . . . 2 . 2 . . . . Garrison Access Hacks 5 | . . . . . 1 . . 4 . . . . . . Unlock Access 1 | . . . . . 1 . . . . . . . . . Seal Access 4 | . . . . . . . . 4 . . . . . . Unauthorized Hacks 43 | . 3 . . . 3 . 3 21 . 13 . . . . Terminals 17 | . 3 . . . 3 . 3 5 . 3 . . . . Assimilate 5 | . 1 . . . 1 . 1 1 . 1 . . . . Botnet 8 | . 1 . . . 1 . 1 3 . 2 . . . . Operators 4 | . 1 . . . 1 . 1 1 . . . . . . Fabricators 7 | . . . . . . . . 5 . 2 . . . . Report 3 | . . . . . . . . 2 . 1 . . . . Siphon 4 | . . . . . . . . 3 . 1 . . . . Repair Stations . | . . . . . . . . . . . . . . . Recycling Units 3 | . . . . . . . . 3 . . . . . . Reject 1 | . . . . . . . . 1 . . . . . . Mask 2 | . . . . . . . . 2 . . . . . . Scanalyzers . | . . . . . . . . . . . . . . . Garrison Access 16 | . . . . . . . . 8 . 8 . . . . Reprogram 16 | . . . . . . . . 8 . 8 . . . . Data Cores Recovered 1 | . . . . . 1 . . . . . . . . . Used 1 | . . . . . 1 . . . . . . . . . Hacking Detections 42 | . 1 . . . 8 . 1 21 . 11 . . . . Full Trace Events 5 | . . . . . 1 . . 3 . 1 . . . . Feedback Events . | . . . . . . . . . . . . . . . Feedback Blocked . | . . . . . . . . . . . . . . . Robot Schematics Acquired 8 | . . . . . 2 . . 6 . . . . . . Robots Built 10 | . . . . . . . . 5 . 5 . . . . Matter 1400 | . . . . . . . . 820 . 580 . . . . Time 821 | . . . . . . . . 522 . 299 . . . . Total Robot Build Rating 33 | . . . . . . . . 15 . 18 . . . . Part Schematics Acquired 12 | . . . . . 2 . . 6 . 2 . . 2 . Parts Built 6 | . . . . . . . . 3 . 3 . . . . Matter 661 | . . . . . . . . 235 . 426 . . . . Time 442 | . . . . . . . . 157 . 285 . . . . Total Part Build Rating 26 | . . . . . . . . 11 . 15 . . . . Parts Repaired 3 | . . . . . . . . . . 3 . . . . Time 132 | . . . . . . . . . . 132 . . . . Parts Recycled . | . . . . . . . . . . . . . . . Recycled Matter . | . . . . . . . . . . . . . . . Retrieved Matter . | . . . . . . . . . . . . . . . Retrieved Components 10 | . . . . . . . . 10 . . . . . . Parts Scanalyzed 4 | . . . . . . . . 2 . 2 . . . . Part Schematics Acquired 4 | . . . . . . . . 2 . 2 . . . . Parts Damaged . | . . . . . . . . . . . . . . . Bothacking | -11 -10 -10 -10 -9 -8 -8 -8 -7 -7 -7 -7 -7 -7 -6 ------------ Run | Scr Mat Min Exi Min Mat Gar Mat Fac Was Fac Low Low Zio Pro Used RIF Installer 1 | . . . . . . 1 . . . . . . . . Robots Hacked . | . . . . . . . . . . . . . . . Non-combat . | . . . . . . . . . . . . . . . Combat . | . . . . . . . . . . . . . . . Robot Hacks Applied . | . . . . . . . . . . . . . . . Relay Couplers Released 10 | . . . . . . . . 10 . . . . . . Programmers 10 | . . . . . . . . 10 . . . . . . Robots Rewired . | . . . . . . . . . . . . . . . Allies Hacked 3 | . . . . . . . . 2 . 1 . . . . Hacks Repelled 1 | . . . . . . . . 1 . . . . . . Allies | -11 -10 -10 -10 -9 -8 -8 -8 -7 -7 -7 -7 -7 -7 -6 -------- Run | Scr Mat Min Exi Min Mat Gar Mat Fac Was Fac Low Low Zio Pro Total Allies 39 | . 1 3 . . . . 1 20 . 14 . . . . Largest Group 7 | . 1 3 2 2 1 . 1 7 4 4 4 4 . . Highest-Rated Group 265 | . 10 40 24 24 16 . 10 265 76 116 113 113 . . Highest-Rated Ally 55 | . 10 16 16 16 16 . 10 55 34 38 30 30 . . Total Orders 10 | . . . . . . . . 8 . 2 . . . . STAY 6 | . . . . . . . . 5 . 1 . . . . FOLLOW 1 | . . . . . . . . . . 1 . . . . AID 3 | . . . . . . . . 3 . . . . . . Ally Attacks 143 | . . 19 . 10 1 . . 52 17 30 . 14 . . Total Damage 4551 | . . 187 . 129 . . . 2591 727 437 . 480 . . Kills 29 | . . 4 . 2 . . . 16 4 1 . 2 . . Allies Corrupted 2 | . . . . . . . 1 . . 1 . . . . Allies Melted . | . . . . . . . . . . . . . . . Intel | -11 -10 -10 -10 -9 -8 -8 -8 -7 -7 -7 -7 -7 -7 -6 ------- Run | Scr Mat Min Exi Min Mat Gar Mat Fac Was Fac Low Low Zio Pro Robot Analysis Total 1 | . . . . . . . . . . 1 . . . . Derelict Logs Recovered 4 | . . 2 . . . . . . . . . . 1 1 Drone Launches . | . . . . . . . . . . . . . . . Drone Recoveries . | . . . . . . . . . . . . . . . Exploration | -11 -10 -10 -10 -9 -8 -8 -8 -7 -7 -7 -7 -7 -7 -6 ------------- Run | Scr Mat Min Exi Min Mat Gar Mat Fac Was Fac Low Low Zio Pro Turns Passed 15836 | 61 450 859 323 53 1156 387 332 5978 343 4695 204 409 363 223 Spaces Moved 12944 | 55 320 673 346 40 843 333 229 4520 227 4280 204 293 314 267 Core 2 | 2 . . . . . . . . . . . . . . Treads 459 | . . . . . . . . 146 42 271 . . . . Legs 6055 | . . . 236 40 843 333 229 4374 . . . . . . Wheels 1156 | 53 320 673 110 . . . . . . . . . . . Hover 5272 | . . . . . . . . . 185 4009 204 293 314 267 Flight . | . . . . . . . . . . . . . . . Fastest Speed 45 | 50 80 90 90 90 45 90 90 45 80 66 66 66 66 66 Average Speed 85 | 78 85 94 90 90 91 90 90 94 97 74 66 122 66 67 Slowest Speed 190 | 80 90 110 100 90 130 90 90 190 170 190 66 131 66 150 Overloaded Moves 33 | . . . . . 1 . . 32 . . . . . . Propulsion Burnouts . | . . . . . . . . . . . . . . . Robots Hopped . | . . . . . . . . . . . . . . . Cave-ins Triggered . | . . . . . . . . . . . . . . . Exploration Rate (%) 49 | 4 59 94 79 19 58 63 27 71 78 45 45 44 14 48 Regions Visited 14 Branch Regions 7 Pre-discovered Areas 3 | . . 1 1 . . . . . . . . . 1 . Known Exits Taken 2 | . . 1 . . 1 . . . . . . . . . Unknown Exits Taken 9 | 1 1 . 1 1 . . 1 . . 1 1 1 1 . Scrap Searched 12 | . . 1 . . . . . . . . 1 6 1 3 Spaces Dug 163 | . . 2 . . 16 10 14 73 1 33 . 1 13 . Terrain Destroyed 614 | . . 2 . . 36 35 84 196 114 133 . 1 13 . Melee 135 | . . . . . 10 3 7 67 1 33 . 1 13 . Projectile 9 | . . 2 . . 6 . . 1 . . . . . . AOE 470 | . . . . . 20 32 77 128 113 100 . . . . Terrain Rammed . | . . . . . . . . . . . . . . . Walls Destroyed . | . . . . . . . . . . . . . . . Machines Disabled . | . . . . . . . . . . . . . . . Actions | -11 -10 -10 -10 -9 -8 -8 -8 -7 -7 -7 -7 -7 -7 -6 --------- Run | Scr Mat Min Exi Min Mat Gar Mat Fac Was Fac Low Low Zio Pro Total 16710 | 67 406 822 357 50 1044 381 293 5990 322 5614 270 342 449 303 Wait 2948 | 2 30 96 5 6 87 7 18 1226 63 1159 62 40 122 25 Move 12930 | 54 319 672 345 39 842 331 228 4520 226 4279 203 292 313 267 Hop . | . . . . . . . . . . . . . . . Pick Up 46 | 3 5 3 1 . 5 2 1 16 1 8 . 1 . . Fast Attach 71 | 6 3 4 3 . 5 1 3 15 4 19 2 2 1 3 Attach 22 | 1 1 2 . . 2 1 1 8 1 4 . . . 1 Detach 4 | . . . . . . . . . 1 3 . . . . Swap 46 | . 3 2 . 2 9 1 3 14 1 8 1 1 . 1 Drop 49 | . 1 2 3 . . . . 23 1 12 1 4 . 2 Fire 258 | 1 43 41 . 3 54 18 25 43 23 6 . 1 . . Melee 325 | . . . . . 40 10 14 125 1 116 1 1 13 4 Ram 1 | . 1 . . . . . . . . . . . . . Kick . | . . . . . . . . . . . . . . . Crush . | . . . . . . . . . . . . . . . Escape Stasis 10 | . . . . . . 10 . . . . . . . . Rewire . | . . . . . . . . . . . . . . . Trap . | . . . . . . . . . . . . . . . Miscellaneous . | . . . . . . . . . . . . . . . Route ------- -11/Scrapyard -10/Materials (discovered 3 exits: [*Mat x2] / [*Min]) -10/Mines (discovered 3 exits: [*Mat x2] / *Exi) -10/Exiles (discovered 2 exits: [*Min x2]) -9/Mines -8/Materials (discovered 3 exits: *Fac x2 / Gar) -8/Garrison (discovered 3 exits: *Mat x3) -8/Materials -7/Factory (discovered 4 exits: *Fac x2 / [*Low x2]) -7/Waste -7/Factory (discovered 2 exits: *Fac / [*Low]) -7/Lower Caves -7/Lower Caves -7/Zion -6/Proximity Caves (discovered 1 exit: Fac) History --------- Turn | Location | Event 31 | -11/Scrapyard | Discovered new exit (range 12) 62 | -11/Scrapyard | Entered Materials 199 | -10/Materials | Discovered new exit (range 15) 263 | -10/Materials | Discovered new exit (range 13) 306 | -10/Materials | Build established: Mutant 325 | -10/Materials | Discovered new exit (range 15) 512 | -10/Materials | Entered Mines 521 | -10/Mines | Core integrity fell below 50% 561 | -10/Mines | Lost 3 parts (1n2w) 664 | -10/Mines | Assisted by bots powering up and referring to "LRC-V3" 742 | -10/Mines | A weapon hastily lodged in a ceiling crevice suddenly fell to the ground 759 | -10/Mines | Discovered new exit (range 10) 769 | -10/Mines | Discovered new exit (range 14) 785 | -10/Mines | Build established: Scavenger-Mutant 954 | -10/Mines | Received a Rocket Launcher from a helpful Derelict 982 | -10/Mines | Learned location of Mines (-9) 1056 | -10/Mines | Identified exit to Exiles 1328 | -10/Mines | Deemed a non-threat by the Exiles lab entrance 1371 | -10/Mines | Entered Exiles 1371 | -10/Exiles | Accompanied by 2 allies 1385 | -10/Exiles | Discovered new exit (range 15) 1396 | -10/Exiles | Met 8R-AWN 1408 | -10/Exiles | Met EX-HEX 1434 | -10/Exiles | Met EX-BIN 1444 | -10/Exiles | Aligned with FarCom system 1444 | -10/Exiles | Given EX-Vault access code 1466 | -10/Exiles | Opened EX-Vault 1471 | -10/Exiles | Found Potential Leg 1474 | -10/Exiles | Found Potential Leg 1493 | -10/Exiles | Warned to stay clear of 0b10 Research branches 1554 | -10/Exiles | Met EX-DEC 1576 | -10/Exiles | Visited The Gauntlet 1622 | -10/Exiles | Learned location of Zion (-7) 1678 | -10/Exiles | Discovered new exit (range 14) 1694 | -10/Exiles | Left Exiles lab with Potential Leg 1694 | -10/Exiles | Entered Mines 1694 | -9/Mines | Accompanied by 2 allies 1739 | -9/Mines | Discovered new exit (range 6) 1747 | -9/Mines | Entered Materials 1747 | -8/Materials | Accompanied by 1 ally 1747 | -8/Materials | Evolved 4 slots: Utility x4 1933 | -8/Materials | Discovered new exit (range 9) 2026 | -8/Materials | Destroyed 8 combat bots 2091 | -8/Materials | Build established: Hacker-Mutant 2410 | -8/Materials | Build established: Mutant 2481 | -8/Materials | Discovered new exit (range 5) 2898 | -8/Materials | Identified exit to Garrison 2903 | -8/Materials | Entered Garrison 2955 | -8/Garrison | Triggered checkpoint 2969 | -8/Garrison | Triggered checkpoint 2979 | -8/Garrison | Triggered checkpoint 3002 | -8/Garrison | Destroyed 10 combat bots 3023 | -8/Garrison | Triggered checkpoint 3048 | -8/Garrison | Destroyed 7 combat bots 3101 | -8/Garrison | Discovered new exit (range 14) 3182 | -8/Garrison | Discovered new exit (range 12) 3269 | -8/Garrison | Discovered new exit (range 11) 3285 | -8/Garrison | Installed Relay Interface Framework 3290 | -8/Garrison | Entered Materials 3540 | -8/Materials | Core integrity fell below 50% 3594 | -8/Materials | Discovered new exit (range 3) 3622 | -8/Materials | Entered Factory 3622 | -7/Factory | Evolved 2 slots: Utility x2 4036 | -7/Factory | Build established: Hacker-Assassin 4119 | -7/Factory | Discovered new exit (range 5) 4275 | -7/Factory | Discovered new exit (range 13) 4659 | -7/Factory | Build established: Hacker-Mutant 4705 | -7/Factory | Discovered new exit (range 12) 5163 | -7/Factory | Fabricated System Shield (x1) 5416 | -7/Factory | Discovered new exit (range 13) 6226 | -7/Factory | Fabricated M-28 Smith (x1) 6733 | -7/Factory | Fabricated O-24 Administrator? 6809 | -7/Factory | Central database locked down 7197 | -7/Factory | Fabricated System Backup Module (x2) 7734 | -7/Factory | Fabricated D-53 Grenadier? 8731 | -7/Factory | Fabricated D-53 Grenadier (x1) 8868 | -7/Factory | Garrison activated, responded to threat 9171 | -7/Factory | Fabricated D-53 Grenadier (x1) 9600 | -7/Factory | Sucked down chute 9600 | -7/Factory | Entered Waste 9615 | -7/Waste | EMP discharged 9615 | -7/Waste | System corruption reached 10% 9621 | -7/Waste | Spotted C-40 Crusher 9636 | -7/Waste | Destroyed C-40 Crusher 9695 | -7/Waste | 3 allies followed down the chute 9705 | -7/Waste | 1 allies followed down the chute 9710 | -7/Waste | Spotted C-40 Crusher 9715 | -7/Waste | EMP discharged 9728 | -7/Waste | Allies destroyed C-40 Crusher 9728 | -7/Waste | Spotted C-40 Crusher 9752 | -7/Waste | Crushed by Compactor (1 part destroyed, 1 dropped) 9755 | -7/Waste | Crushed by Compactor (1 part destroyed, 1 dropped) 9786 | -7/Waste | Lost 4 parts (1p2u1w) 9805 | -7/Waste | Spotted C-40 Crusher 9810 | -7/Waste | Spotted C-40 Crusher 9815 | -7/Waste | EMP discharged 9874 | -7/Waste | Spotted C-40 Crusher 9915 | -7/Waste | EMP discharged 9915 | -7/Waste | System corruption reached 30% 9928 | -7/Waste | Discovered new exit (range 15) 9943 | -7/Waste | Entered Factory 10329 | -7/Factory | Build established: Wizard-Mutant 10561 | -7/Factory | Core integrity fell below 50% 10977 | -7/Factory | Discovered new exit (range 6) 11107 | -7/Factory | Repaired Cmb. Gravmag System 11153 | -7/Factory | Repaired Chainsword 11186 | -7/Factory | Repaired Imp. Hover Unit 11375 | -7/Factory | Discovered new exit (range 2) 11782 | -7/Factory | Garrison activated, responded to threat 12050 | -7/Factory | Fabricated O-24 Administrator? 12108 | -7/Factory | Garrison activated, responded to threat 12502 | -7/Factory | Lost 4 parts (1p1n2u) 12554 | -7/Factory | Fabricated O-24 Administrator (x1) 12626 | -7/Factory | Core integrity fell below 20% 13037 | -7/Factory | Fabricated Imp. System Shield? 13540 | -7/Factory | Fabricated Imp. System Shield (x1) 14039 | -7/Factory | Fabricated Imp. System Shield? 14513 | -7/Factory | Fabricated L-41 Fighter? 14638 | -7/Factory | Entered Lower Caves 14638 | -7/Lower Caves | Accompanied by 4 allies 14827 | -7/Lower Caves | Discovered new exit (range 6) 14842 | -7/Lower Caves | Entered another Lower Caves area 14842 | -7/Lower Caves | Accompanied by 4 allies 14843 | -7/Lower Caves | Build established: Hacker-Mutant 15088 | -7/Lower Caves | Spotted B-75 Beast 15239 | -7/Lower Caves | Attracted the attention of an 0b10 outpost 15247 | -7/Lower Caves | Discovered new exit (range 7) 15251 | -7/Lower Caves | Entered Zion 15263 | -7/Zion | Learned location of Extension (-5) 15366 | -7/Zion | Discovered new exit (range 10) 15375 | -7/Zion | Received a hallucinogenic algorithm 15566 | -7/Zion | RIF detected upon attempting to enter Zion 15566 | -7/Zion | Attacked by Zionites 15614 | -7/Zion | Entered Proximity Caves 15752 | -6/Proximity Caves | Identified exit to Factory 15765 | -6/Proximity Caves | Spotted B-75 Beast 15837 | -6/Proximity Caves | Destroyed by Y-54 Guardian with Gatling Laser Last Messages --------------- 15741_ Imp. Heat Sink fries itself beyond repair. 15741_ Acquired 10 matter. 15743_ Unknown Energy Gun fries itself beyond repair. 15744_ Target Analyzer fries itself beyond repair. 15752_ Acquired derelict log, extracted data. Loading 1 Proximity Caves exit... 15758_ Searching scrap... 15758_ Found Imp. System Shield. 15758_ Found Datajack. 15758_ Found Imp. Particle Charger. 15758_ Found 10 Matter. 15759_ Acquired Imp. System Shield. 15767_ Searching scrap... 15767_ Found Unknown Device. 15767_ Found Imp. Core Shielding. 15767_ Found 39 Matter. 15775_ System corrupted: Component data lost. 15797_ TDS&R J&/ISU< JQWS2ELEZ2 15802_ Acquired 10 matter. 15831_ System corrupted: Substantial component data lost. Map ----- +----------------------------------------------------+ | # ##?????? #???????????????????????????? | | #?#?????? #???????????????????????????? | | #???###???# #???????????????????????????? | | #??## ##?## #??#????????????????????????? | | #??# ### #???????????????????????????? | | #### #???????????????????????????? | | #????????#??????????????????? | | ##??????????????????????????? | | #??????????????????????????? | | ## #??????????????????????????? | | #### #????????#?????????????????? | | #?## #??????????????????????????? | | ### ##??????????????????????????? | | ## #???????????????????????????? | | ## ### #???????????????????????????? | | ### #### ##??????????????#????????????? | | #?##?## #????????????????????????????? | | ###### #????# #????????????????????????????? | | #????## ##???## #???????????????#????????????? | | ??????# #??### ##????????????????????????????? | | ??????# #??# #????######???????????????????? | | #????#? ???# ###?## ####?????? ?????????? | | #?????????#?## ### ### ?????????? | | #???????#????## ### ????????? | | #?????????????## ### ???????????? | | #?????????????## ## @ #?????????????????? | | ???#??????##???# ### #?????????????????? | | ??????##### ## ### ## #?????????????????? | | ?? ## #### ?????????????? | | ?? #??? ??????????? | | ?????######## ####????ss ???????????? | | ????????????# ###???????? Y ??????????? | | ????????????# ##??????????? s ??????????? | | ????????????# ####?????????????? ???????????? | | ????????????## #??????????????????? ???????????? | | ?????????????# ?????????????????????????????????? | | ?????????????# ?????????????????????????????????? | | ?????????????# $?????????????????????????????????? | | ?????????????# ?????????????????????????????????? | | ????????????? ?????????????????????????????????? | | ????????????? ??????????????????????????????????? | | ????????????? ??????????????????????????????????? | | ????????????? ????????????????#??????????????????? | | ?????????????????????????????????????????????????? | | ?????????????????????????????????????????????????? | | ?????????????????????????????????????????????????? | | ?????????????????????????????????????????????????? | | ?????????????????????????????????????????????????? | | ?????????????????????????????????????????????????? | | ?????????????????????????????????????????????????? | +----------------------------------------------------+ Best States ------------- Heat Dissipation 34 Energy Generation 18 Energy Capacity 160 Matter Stores 300 Matter Capacity 300 Sight Range 16 Terrain Scan Range 20 Terrain Scan Density 110 Armor Coverage 375 Resistance: KI 20 Resistance: EM 15 Evasion (%) 51 Targeting Accuracy 8 Recoil Reduction 2 Offensive Hacking 30 Defensive Hacking 32 Item Schematics ----------------- Hacking Suite | -8/Materials | Hacked System Shield | -8/Materials | Hacked System Backup Module | -7/Factory | Hacked Microactuators | -7/Factory | Hacked Imp. System Shield | -7/Factory | Hacked Lgt. Deuterium Engine | -7/Factory | Scanalyzed Gauss Rifle | -7/Factory | Scanalyzed Disruptor Cannon | -7/Factory | Hacked Chainsword | -7/Factory | Scanalyzed Cmb. Gravmag System | -7/Factory | Scanalyzed Beamcaster | -7/Zion | Free Ripper | -7/Zion | Free Robot Schematics ------------------ O-24 Administrator | -8/Materials | Hacked D-53 Grenadier | -8/Materials | Hacked P-60 Hacker | -7/Factory | Hacked L-41 Fighter | -7/Factory | Hacked L-31 Rogue | -7/Factory | Hacked B-48 Gladiator | -7/Factory | Hacked Y-54 Guardian | -7/Factory | Hacked M-28 Smith | -7/Factory | Hacked Fabricated ------------ System Shield | x1 | -7/Factory M-28 Smith | x1 | -7/Factory O-24 Administrator | x1 | -7/Factory System Backup Module | x2 | -7/Factory D-53 Grenadier | x1 | -7/Factory D-53 Grenadier | x1 | -7/Factory D-53 Grenadier | x1 | -7/Factory O-24 Administrator | x1 | -7/Factory O-24 Administrator | x1 | -7/Factory Imp. System Shield | x1 | -7/Factory Imp. System Shield | x1 | -7/Factory Imp. System Shield | x1 | -7/Factory L-41 Fighter | x3 | -7/Factory Alien Tech Used ----------------- None Achievements -------------- None Challenges ------------ None Game ------ Seed PlasmaGuidedInverter Manual? 0 Play Time 03:18:45 Cumulative 100.3 hours Start 2021.10.17 @ 16:52:13 End 2021.10.18 @ 18:10:26 Sessions 3 Manual Loads 0 Difficulty Rogue Special Mode None Game No. 75 Rogue 72 Adventurer 3 Explorer 0 Win Type - Total 1 Types 1/0/0/0/0/0/0/0/0 Lore% 49 Gallery% 51 Achievement% 43 Wizard Run 0 Options --------- ASCII 0 Keyboard 0 Movement Numpad Keybinds 0 Fullscreen 1 Font 18/SmallcapsGlow Map View 76x50 Tactical HUD 1 Map Filters NONE Filters NONE Steam 1 RUN: 2f2bdead-d92b-4295-bc1b-0eaf3e6fcd3d